[Event "Paul Kerese Mälestusfestival 2022 Kiirturniir"]
[Site "Pärnu, Estonia Resort Hotel & Spa"]
[Date "????.??.??"]
[Round "5.3"]
[White "Heinmets, Tõnu"]
[Black "Volodin, Aleksandr"]
[Result "0-1"]
[TimeControl "15 minutit partiile + 3 sek käigule"]
[BlackTitle "GM"]
[WhiteElo "1993"]
[BlackElo "2407"]

1. b3 {[%clk 00:15:05]} {[%emt 00:05:52]} d5 {[%clk 00:13:31]} {[%emt
00:01:33]} 2. Bb2 {[%clk 00:15:03]} {[%emt 00:00:09]} c5 {[%clk 00:13:30]}
{[%emt 00:00:04]} 3. e3 {[%clk 00:15:03]} {[%emt 00:00:04]} a6 {[%clk
00:13:28]} {[%emt 00:00:05]} 4. a4 {[%clk 00:14:56]} {[%emt 00:00:09]} Nc6
{[%clk 00:13:27]} {[%emt 00:00:04]} 5. Nf3 {[%clk 00:14:57]} {[%emt 00:00:02]}
Nf6 {[%clk 00:13:26]} {[%emt 00:00:04]} 6. d4 {[%clk 00:14:18]} {[%emt
00:00:42]} Bg4 {[%clk 00:13:18]} {[%emt 00:00:11]} 7. Be2 {[%clk 00:14:16]}
{[%emt 00:00:06]} e6 {[%clk 00:13:19]} {[%emt 00:00:01]} 8. O-O {[%clk
00:14:17]} {[%emt 00:00:02]} Be7 {[%clk 00:13:16]} {[%emt 00:00:06]} 9. h3
{[%clk 00:14:18]} {[%emt 00:00:02]} Bh5 {[%clk 00:13:14]} {[%emt 00:00:05]} 10.
Nbd2 {[%clk 00:13:21]} {[%emt 00:01:01]} O-O {[%clk 00:13:05]} {[%emt
00:00:12]} 11. c4 {[%clk 00:13:05]} {[%emt 00:00:19]} Rc8 {[%clk 00:12:38]}
{[%emt 00:00:30]} 12. Ne5 {[%clk 00:11:21]} {[%emt 00:01:46]} Bxe2 {[%clk
00:12:35]} {[%emt 00:00:06]} 13. Qxe2 {[%clk 00:11:23]} {[%emt 00:00:01]} cxd4
{[%clk 00:12:23]} {[%emt 00:00:15]} 14. Nxc6 {[%clk 00:11:21]} {[%emt
00:00:05]} bxc6 {[%clk 00:10:17]} {[%emt 00:02:09]} 15. exd4 {[%clk 00:11:22]}
{[%emt 00:00:02]} Qb6 {[%clk 00:09:19]} {[%emt 00:01:01]} 16. c5 {[%clk
00:10:15]} {[%emt 00:01:11]} Qb7 {[%clk 00:09:20]} {[%emt 00:00:01]} 17. Bc3
{[%clk 00:10:12]} {[%emt 00:00:06]} Nd7 {[%clk 00:09:20]} {[%emt 00:00:03]} 18.
Rfb1 {[%clk 00:10:00]} {[%emt 00:00:14]} Bf6 {[%clk 00:09:19]} {[%emt
00:00:05]} 19. b4 {[%clk 00:09:32]} {[%emt 00:00:31]} Rb8 {[%clk 00:09:13]}
{[%emt 00:00:08]} 20. Rb3 {[%clk 00:09:20]} {[%emt 00:00:15]} Rfe8 {[%clk
00:07:52]} {[%emt 00:01:24]} 21. f4 {[%clk 00:09:11]} {[%emt 00:00:11]} g6
{[%clk 00:07:24]} {[%emt 00:00:32]} 22. Rab1 {[%clk 00:09:13]} {[%emt
00:00:02]} Bg7 {[%clk 00:07:16]} {[%emt 00:00:10]} 23. Nf3 {[%clk 00:08:57]}
{[%emt 00:00:19]} Nf6 {[%clk 00:07:02]} {[%emt 00:00:17]} 24. b5 {[%clk
00:07:11]} {[%emt 00:01:49]} axb5 {[%clk 00:07:00]} {[%emt 00:00:05]} 25. axb5
{[%clk 00:07:12]} {[%emt 00:00:03]} Ne4 {[%clk 00:06:22]} {[%emt 00:00:41]} 26.
Ba5 {[%clk 00:07:07]} {[%emt 00:00:08]} Ra8 {[%clk 00:05:10]} {[%emt 00:01:14]}
27. bxc6 {[%clk 00:05:56]} {[%emt 00:01:14]} Qxc6 {[%clk 00:05:11]} {[%emt
00:00:03]} 28. Qb5 {[%clk 00:05:57]} {[%emt 00:00:02]} Qc8 {[%clk 00:04:25]}
{[%emt 00:00:49]} 29. Ne5 {[%clk 00:05:26]} {[%emt 00:00:34]} Bh6 {[%clk
00:03:38]} {[%emt 00:00:50]} 30. g3 {[%clk 00:04:03]} {[%emt 00:01:26]} f6
{[%clk 00:03:24]} {[%emt 00:00:16]} 31. Nd7 {[%clk 00:02:44]} {[%emt 00:01:22]}
e5 {[%clk 00:02:16]} {[%emt 00:01:12]} 32. dxe5 {[%clk 00:01:05]} {[%emt
00:01:42]} Rxa5 {[%emt 00:00:05]} 33. Nxf6+ {[%clk 00:00:45]} {[%emt 00:00:22]}
Nxf6 {[%clk 00:02:15]} {[%emt 00:00:03]} 34. Qxa5 {[%clk 00:00:45]} {[%emt
00:00:04]} Nd7 {[%clk 00:01:46]} {[%emt 00:00:32]} 35. Rd3 {[%clk 00:00:27]}
{[%emt 00:00:21]} Bf8 {[%clk 00:01:18]} {[%emt 00:00:31]} 36. Rxd5 {[%clk
00:00:26]} {[%emt 00:00:04]} Nxc5 {[%clk 00:01:20]} {[%emt 00:00:01]} 37. Rc1
{[%clk 00:00:21]} {[%emt 00:00:07]} Qxh3 {[%clk 00:01:14]} {[%emt 00:00:10]} 38.
Rdxc5 {[%clk 00:00:10]} {[%emt 00:00:14]} Qxg3+ {[%clk 00:01:15]} {[%emt
00:00:02]} 39. Kh1 {[%clk 00:00:12]} {[%emt 00:00:01]} Qh4+ {[%clk 00:00:46]}
{[%emt 00:00:31]} 40. Kg1 {[%clk 00:00:14]} {[%emt 00:00:01]} Bxc5+ {[%clk
00:00:42]} {[%emt 00:00:07]} 41. Qxc5 {[%clk 00:00:14]} {[%emt 00:00:03]} Qg4+
{[%clk 00:00:39]} {[%emt 00:00:06]} 42. Kh1 {[%clk 00:00:16]} {[%emt 00:00:02]}
Qxf4 {[%clk 00:00:40]} {[%emt 00:00:02]} 43. Qd5+ {[%clk 00:00:13]} {[%emt
00:00:06]} Qf7 {[%clk 00:00:41]} {[%emt 00:00:02]} 44. Qe4 {[%clk 00:00:11]}
{[%emt 00:00:04]} Qe6 {[%clk 00:00:38]} {[%emt 00:00:06]} 45. Re1 {[%clk
00:00:09]} {[%emt 00:00:05]} Kg7 {[%clk 00:00:39]} {[%emt 00:00:03]} 46. Kg2
{[%clk 00:00:11]} Re7 {[%clk 00:00:31]} {[%emt 00:00:11]} 47. Re2 {[%clk
00:00:12]} {[%emt 00:00:02]} h5 {[%clk 00:00:29]} {[%emt 00:00:04]} 48. Re1
{[%clk 00:00:13]} {[%emt 00:00:02]} Rc7 {[%clk 00:00:30]} {[%emt 00:00:02]} 49.
Re2 {[%clk 00:00:14]} {[%emt 00:00:02]} Rc4 {[%clk 00:00:30]} {[%emt 00:00:03]}
50. Qb7+ {[%clk 00:00:12]} {[%emt 00:00:05]} Kh6 {[%clk 00:00:33]} 51. Qf3
{[%clk 00:00:09]} {[%emt 00:00:06]} Rg4+ {[%clk 00:00:23]} {[%emt 00:00:13]} 52.
Kf2 {[%clk 00:00:11]} {[%emt 00:00:01]} Qb6+ {[%clk 00:00:14]} {[%emt
00:00:12]} 53. Re3 {[%clk 00:00:10]} {[%emt 00:00:04]} Qb4 {[%clk 00:00:11]}
{[%emt 00:00:06]} 54. e6 {[%clk 00:00:06]} {[%emt 00:00:07]} Rf4 {[%clk
00:00:12]} {[%emt 00:00:02]} 55. e7 {[%clk 00:00:06]} {[%emt 00:00:03]} Qb2+
{[%clk 00:00:06]} {[%emt 00:00:09]} 56. Kg3 {[%emt 00:00:06]} 0-1

[Event "Paul Kerese Mälestusfestival 2022 Kiirturniir"]
[Site "Pärnu, Estonia Resort Hotel & Spa"]
[Date "????.??.??"]
[Round "5.4"]
[White "Krilovs, Nikolajs"]
[Black "Kantans, Toms"]
[Result "0-1"]
[TimeControl "15 minutit partiile + 3 sek käigule"]
[BlackTitle "GM"]
[WhiteElo "1954"]
[BlackElo "2422"]

1. d4 {[%clk 00:15:03]} Nf6 {[%clk 00:15:05]} {[%emt 00:00:02]} 2. Nf3 {[%clk
00:15:04]} {[%emt 00:00:02]} g6 {[%clk 00:15:06]} {[%emt 00:00:03]} 3. c4
{[%clk 00:14:57]} {[%emt 00:00:09]} Bg7 {[%clk 00:15:07]} {[%emt 00:00:02]} 4.
e3 {[%clk 00:14:48]} {[%emt 00:00:12]} O-O {[%clk 00:15:02]} {[%emt 00:00:08]}
5. Be2 {[%clk 00:14:49]} {[%emt 00:00:03]} c5 {[%clk 00:15:03]} {[%emt
00:00:02]} 6. d5 {[%clk 00:14:05]} {[%emt 00:00:47]} d6 {[%clk 00:14:56]}
{[%emt 00:00:11]} 7. Nc3 {[%clk 00:13:57]} {[%emt 00:00:11]} e6 {[%clk
00:14:57]} {[%emt 00:00:02]} 8. O-O {[%clk 00:13:52]} {[%emt 00:00:08]} Re8
{[%clk 00:14:58]} {[%emt 00:00:02]} 9. Re1 {[%clk 00:13:19]} {[%emt 00:00:35]}
exd5 {[%clk 00:13:13]} {[%emt 00:01:48]} 10. cxd5 {[%clk 00:13:14]} {[%emt
00:00:08]} Bg4 {[%clk 00:12:24]} {[%emt 00:00:53]} 11. Nd2 {[%clk 00:12:46]}
{[%emt 00:00:30]} Bxe2 {[%clk 00:12:25]} {[%emt 00:00:02]} 12. Qxe2 {[%clk
00:12:45]} {[%emt 00:00:04]} Nbd7 {[%clk 00:12:26]} {[%emt 00:00:02]} 13. Nc4
{[%clk 00:12:12]} {[%emt 00:00:36]} Nb6 {[%clk 00:12:26]} {[%emt 00:00:03]} 14.
e4 {[%clk 00:11:27]} {[%emt 00:00:48]} Nfxd5 {[%clk 00:11:05]} {[%emt
00:01:24]} 15. Nxd5 {[%clk 00:11:27]} {[%emt 00:00:02]} Nxd5 {[%clk 00:11:06]}
{[%emt 00:00:02]} 16. Rd1 {[%clk 00:10:38]} {[%emt 00:00:52]} Bd4 {[%clk
00:10:59]} {[%emt 00:00:11]} 17. Qf3 {[%clk 00:07:27]} {[%emt 00:03:14]} Nb6
{[%clk 00:10:42]} {[%emt 00:00:20]} 18. Ne3 {[%clk 00:07:01]} {[%emt 00:00:29]}
Qe7 {[%clk 00:09:59]} {[%emt 00:00:46]} 19. Ng4 {[%clk 00:06:33]} {[%emt
00:00:31]} f5 {[%clk 00:08:43]} {[%emt 00:01:19]} 20. Nh6+ {[%clk 00:05:43]}
{[%emt 00:00:53]} Kg7 {[%clk 00:08:40]} {[%emt 00:00:07]} 21. h4 {[%clk
00:03:49]} {[%emt 00:01:57]} Qxe4 {[%clk 00:08:24]} {[%emt 00:00:19]} 22. Qb3
{[%clk 00:03:34]} {[%emt 00:00:17]} c4 {[%clk 00:07:28]} {[%emt 00:01:00]} 23.
Qg3 {[%clk 00:03:16]} {[%emt 00:00:20]} Be5 {[%clk 00:07:00]} {[%emt 00:00:32]}
24. Qh3 {[%clk 00:02:39]} {[%emt 00:00:40]} Nd5 {[%clk 00:06:47]} {[%emt
00:00:16]} 25. g3 {[%clk 00:01:20]} {[%emt 00:01:21]} c3 {[%clk 00:06:24]}
{[%emt 00:00:26]} 26. Rxd5 {[%clk 00:00:45]} {[%emt 00:00:39]} Qxd5 {[%clk
00:06:17]} {[%emt 00:00:10]} 27. bxc3 {[%clk 00:00:41]} {[%emt 00:00:07]} Bxc3
{[%clk 00:06:09]} {[%emt 00:00:11]} 28. Rb1 {[%clk 00:00:41]} {[%emt 00:00:03]}
Re1+ {[%clk 00:06:08]} {[%emt 00:00:03]} 0-1

[Event "Paul Kerese Mälestusfestival 2022 Kiirturniir"]
[Site "Pärnu, Estonia Resort Hotel & Spa"]
[Date "????.??.??"]
[Round "5.5"]
[White "Chukavin, Kirill"]
[Black "Valdats, Reinis"]
[Result "1-0"]
[TimeControl "15 minutit partiile + 3 sek käigule"]
[WhiteTitle "FM"]
[WhiteElo "2418"]
[BlackElo "1497"]

1. e4 {[%clk 00:13:08]} {[%emt 00:01:54]} c5 {[%clk 00:15:04]} {[%emt
00:00:03]} 2. Nf3 {[%clk 00:13:08]} {[%emt 00:00:03]} e6 {[%clk 00:15:06]}
{[%emt 00:00:01]} 3. d4 {[%clk 00:13:11]} cxd4 4. Nxd4 {[%clk 00:13:12]} Nc6
{[%clk 00:15:11]} {[%emt 00:00:01]} 5. Nc3 {[%clk 00:13:14]} {[%emt 00:00:01]}
Qc7 {[%clk 00:15:13]} 6. g3 {[%clk 00:13:15]} {[%emt 00:00:03]} a6 {[%clk
00:14:57]} {[%emt 00:00:19]} 7. Bg2 {[%clk 00:13:14]} {[%emt 00:00:03]} Nf6
{[%clk 00:14:52]} {[%emt 00:00:09]} 8. O-O {[%clk 00:13:12]} {[%emt 00:00:05]}
Bb4 {[%clk 00:14:47]} {[%emt 00:00:08]} 9. Nxc6 {[%clk 00:12:39]} {[%emt
00:00:36]} bxc6 {[%clk 00:14:41]} {[%emt 00:00:09]} 10. Qd4 {[%clk 00:12:30]}
{[%emt 00:00:11]} Be7 {[%clk 00:13:58]} {[%emt 00:00:46]} 11. e5 {[%clk
00:12:21]} {[%emt 00:00:12]} Nd5 {[%clk 00:13:33]} {[%emt 00:00:27]} 12. Ne4
{[%clk 00:11:32]} {[%emt 00:00:53]} O-O {[%clk 00:13:20]} {[%emt 00:00:17]} 13.
c4 {[%clk 00:11:25]} {[%emt 00:00:10]} Nb4 {[%clk 00:11:09]} {[%emt 00:02:13]}
14. Nf6+ {[%clk 00:09:37]} {[%emt 00:01:53]} Kh8 {[%clk 00:07:42]} {[%emt
00:03:30]} 15. Qh4 {[%clk 00:09:13]} {[%emt 00:00:25]} Bxf6 {[%clk 00:05:45]}
{[%emt 00:02:01]} 16. exf6 {[%clk 00:09:11]} {[%emt 00:00:05]} g6 {[%clk
00:05:18]} {[%emt 00:00:30]} 17. Bh6 {[%clk 00:08:59]} {[%emt 00:00:15]} Re8
{[%clk 00:04:41]} {[%emt 00:00:40]} 18. Bg7+ {[%clk 00:07:57]} {[%emt
00:01:05]} Kg8 {[%clk 00:04:43]} 19. Qh6 {[%clk 00:07:49]} {[%emt 00:00:11]}
Qd6 {[%clk 00:04:41]} {[%emt 00:00:06]} 20. Rfd1 {[%clk 00:07:26]} {[%emt
00:00:26]} Qc5 {[%clk 00:04:42]} {[%emt 00:00:02]} 21. a3 {[%clk 00:07:27]}
{[%emt 00:00:03]} Nc2 {[%clk 00:03:49]} {[%emt 00:00:56]} 22. Rac1 {[%clk
00:07:26]} {[%emt 00:00:03]} Nxa3 {[%clk 00:03:17]} {[%emt 00:00:35]} 23. bxa3
{[%clk 00:07:17]} {[%emt 00:00:13]} e5 {[%clk 00:02:56]} {[%emt 00:00:24]} 24.
h4 {[%clk 00:06:38]} {[%emt 00:00:42]} e4 {[%clk 00:02:02]} {[%emt 00:00:57]}
25. Re1 {[%clk 00:06:38]} {[%emt 00:00:03]} Bb7 {[%clk 00:01:29]} {[%emt
00:00:36]} 26. Rb1 {[%clk 00:06:02]} {[%emt 00:00:37]} Rab8 {[%clk 00:01:22]}
{[%emt 00:00:11]} 27. Rxe4 {[%clk 00:05:55]} {[%emt 00:00:10]} Rxe4 {[%clk
00:01:19]} {[%emt 00:00:06]} 28. Bxe4 {[%clk 00:05:57]} {[%emt 00:00:02]} Qxa3
{[%clk 00:00:57]} {[%emt 00:00:26]} 29. Qf4 {[%clk 00:05:43]} {[%emt 00:00:15]}
d6 {[%clk 00:00:51]} {[%emt 00:00:10]} 30. Qh6 {[%clk 00:05:42]} {[%emt
00:00:04]} d5 {[%clk 00:00:27]} {[%emt 00:00:28]} 31. Qf4 {[%clk 00:05:41]}
{[%emt 00:00:02]} Re8 {[%clk 00:00:24]} {[%emt 00:00:06]} 32. Rxb7 {[%clk
00:05:41]} {[%emt 00:00:04]} dxe4 {[%clk 00:00:25]} {[%emt 00:00:02]} 33. Re7
{[%clk 00:05:14]} {[%emt 00:00:30]} Rd8 {[%clk 00:00:14]} {[%emt 00:00:15]} 34.
Qxe4 {[%clk 00:05:08]} {[%emt 00:00:08]} Qc1+ {[%clk 00:00:11]} {[%emt
00:00:06]} 35. Kg2 {[%clk 00:05:03]} {[%emt 00:00:07]} 1-0

[Event "Paul Kerese Mälestusfestival 2022 Kiirturniir"]
[Site "Pärnu, Estonia Resort Hotel & Spa"]
[Date "????.??.??"]
[Round "5.6"]
[White "Shvyrjov, Igor"]
[Black "Tsiganova, Monika"]
[Result "1-0"]
[TimeControl "15 minutit partiile + 3 sek käigule"]
[WhiteTitle "GM"]
[BlackTitle "WIM"]
[WhiteElo "2153"]
[BlackElo "1906"]

1. d4 {[%clk 00:15:02]} {[%emt 00:00:02]} Nf6 {[%clk 00:15:03]} {[%emt
00:00:03]} 2. Nf3 {[%clk 00:15:04]} {[%emt 00:00:02]} e6 {[%clk 00:14:42]}
{[%emt 00:00:24]} 3. g3 {[%clk 00:14:55]} {[%emt 00:00:12]} c5 {[%clk
00:14:31]} {[%emt 00:00:14]} 4. Bg2 {[%clk 00:14:55]} {[%emt 00:00:04]} cxd4
{[%clk 00:14:06]} {[%emt 00:00:28]} 5. O-O {[%clk 00:14:53]} {[%emt 00:00:04]}
Nc6 {[%clk 00:13:51]} {[%emt 00:00:18]} 6. Nxd4 {[%clk 00:14:55]} {[%emt
00:00:03]} d5 {[%clk 00:13:24]} {[%emt 00:00:29]} 7. Nb3 {[%clk 00:14:01]}
{[%emt 00:00:57]} Be7 {[%clk 00:13:16]} {[%emt 00:00:10]} 8. c3 {[%clk
00:13:53]} {[%emt 00:00:12]} O-O {[%clk 00:13:12]} {[%emt 00:00:05]} 9. Bg5
{[%clk 00:13:54]} {[%emt 00:00:03]} h6 {[%clk 00:13:07]} {[%emt 00:00:09]} 10.
Bxf6 {[%clk 00:13:55]} {[%emt 00:00:01]} Bxf6 {[%clk 00:13:07]} {[%emt
00:00:02]} 11. N1d2 {[%clk 00:13:56]} {[%emt 00:00:03]} b6 {[%clk 00:12:06]}
{[%emt 00:01:03]} 12. e4 {[%clk 00:13:57]} {[%emt 00:00:02]} Ba6 {[%clk
00:12:02]} {[%emt 00:00:07]} 13. Re1 {[%clk 00:13:57]} {[%emt 00:00:03]} Ne5
{[%clk 00:12:00]} {[%emt 00:00:04]} 14. exd5 {[%clk 00:13:46]} {[%emt
00:00:16]} exd5 {[%clk 00:11:51]} {[%emt 00:00:12]} 15. Nf1 {[%clk 00:12:15]}
{[%emt 00:01:33]} Nd3 {[%clk 00:08:24]} {[%emt 00:03:29]} 16. Re2 {[%clk
00:12:11]} {[%emt 00:00:08]} Nxb2 {[%clk 00:07:55]} {[%emt 00:00:32]} 17. Rxb2
{[%clk 00:12:11]} {[%emt 00:00:03]} Bxc3 {[%clk 00:07:55]} {[%emt 00:00:03]} 18.
Rd2 {[%clk 00:11:55]} {[%emt 00:00:19]} Bxa1 {[%clk 00:07:02]} {[%emt
00:00:56]} 19. Qxa1 {[%clk 00:11:52]} {[%emt 00:00:06]} Bb7 {[%clk 00:06:57]}
{[%emt 00:00:08]} 20. Ne3 {[%clk 00:11:51]} {[%emt 00:00:04]} a5 {[%clk
00:04:57]} {[%emt 00:02:03]} 21. Nxd5 {[%clk 00:11:34]} {[%emt 00:00:20]} a4
{[%clk 00:04:36]} {[%emt 00:00:24]} 22. Nd4 {[%clk 00:07:29]} {[%emt 00:04:08]}
Bxd5 {[%clk 00:04:28]} {[%emt 00:00:10]} 23. Nf5 {[%clk 00:07:31]} {[%emt
00:00:01]} Qg5 {[%clk 00:03:58]} {[%emt 00:00:34]} 24. Rxd5 {[%clk 00:07:31]}
{[%emt 00:00:03]} Rad8 {[%clk 00:03:31]} {[%emt 00:00:29]} 25. h4 {[%clk
00:07:19]} {[%emt 00:00:16]} Qg4 {[%clk 00:02:59]} {[%emt 00:00:34]} 26. Bf3
{[%clk 00:06:47]} {[%emt 00:00:35]} 1-0

[Event "Paul Kerese Mälestusfestival 2022 Kiirturniir"]
[Site "Pärnu, Estonia Resort Hotel & Spa"]
[Date "????.??.??"]
[Round "5.7"]
[White "Agafonov, Yuri"]
[Black "Kivioja, Endel"]
[Result "1-0"]
[TimeControl "15 minutit partiile + 3 sek käigule"]
[WhiteElo "2018"]
[BlackElo "2142"]

1. d4 {[%clk 00:15:03]} {[%emt 00:00:02]} c5 {[%clk 00:15:05]} {[%emt
00:00:01]} 2. d5 {[%clk 00:15:05]} {[%emt 00:00:02]} e5 {[%clk 00:15:07]} 3. e4
{[%clk 00:15:04]} {[%emt 00:00:04]} d6 {[%clk 00:15:09]} {[%emt 00:00:03]} 4.
a4 {[%clk 00:14:57]} {[%emt 00:00:08]} Be7 {[%clk 00:15:11]} {[%emt 00:00:01]}
5. Bb5+ {[%clk 00:14:56]} {[%emt 00:00:04]} Kf8 {[%clk 00:15:13]} 6. Ne2 {[%clk
00:14:51]} {[%emt 00:00:08]} Bg5 {[%clk 00:15:11]} {[%emt 00:00:05]} 7. Nd2
{[%clk 00:14:42]} {[%emt 00:00:11]} g6 {[%clk 00:15:10]} {[%emt 00:00:04]} 8.
O-O {[%clk 00:14:37]} {[%emt 00:00:08]} a6 {[%clk 00:15:12]} {[%emt 00:00:02]}
9. Bd3 {[%clk 00:14:37]} {[%emt 00:00:02]} b6 {[%clk 00:15:12]} {[%emt
00:00:03]} 10. c3 {[%clk 00:14:33]} {[%emt 00:00:07]} Nd7 {[%clk 00:15:12]}
{[%emt 00:00:03]} 11. Nc4 {[%clk 00:14:27]} {[%emt 00:00:08]} Qe7 {[%clk
00:15:05]} {[%emt 00:00:09]} 12. Bxg5 {[%clk 00:14:23]} {[%emt 00:00:08]} Qxg5
{[%clk 00:15:06]} {[%emt 00:00:02]} 13. Nxd6 {[%clk 00:14:24]} {[%emt
00:00:02]} Ne7 {[%clk 00:14:42]} {[%emt 00:00:27]} 14. b4 {[%clk 00:14:15]}
{[%emt 00:00:12]} Qf6 {[%clk 00:14:39]} {[%emt 00:00:07]} 15. Nc4 {[%clk
00:13:48]} {[%emt 00:00:30]} Rb8 {[%clk 00:14:32]} {[%emt 00:00:10]} 16. f4
{[%clk 00:12:53]} {[%emt 00:00:59]} Kg7 {[%clk 00:14:05]} {[%emt 00:00:29]} 17.
Ne3 {[%clk 00:12:32]} {[%emt 00:00:24]} Rf8 {[%clk 00:13:37]} {[%emt 00:00:31]}
18. Qd2 {[%clk 00:12:10]} {[%emt 00:00:25]} exf4 {[%clk 00:12:50]} {[%emt
00:00:50]} 19. Rxf4 {[%clk 00:12:06]} {[%emt 00:00:07]} Qg5 {[%clk 00:12:48]}
{[%emt 00:00:06]} 20. h4 {[%clk 00:10:35]} {[%emt 00:01:33]} Qh5 {[%clk
00:12:25]} {[%emt 00:00:26]} 21. Raf1 {[%clk 00:10:07]} {[%emt 00:00:31]} Ne5
{[%clk 00:12:24]} {[%emt 00:00:05]} 22. Ng3 {[%clk 00:09:53]} {[%emt 00:00:17]}
Qh6 {[%clk 00:12:23]} {[%emt 00:00:04]} 23. d6 {[%clk 00:06:55]} {[%emt
00:03:01]} N7c6 {[%clk 00:12:01]} {[%emt 00:00:25]} 24. Bxa6 {[%clk 00:06:29]}
{[%emt 00:00:30]} Bxa6 {[%clk 00:10:53]} {[%emt 00:01:11]} 25. Nef5+ {[%clk
00:06:22]} {[%emt 00:00:10]} 1-0

[Event "Paul Kerese Mälestusfestival 2022 Kiirturniir"]
[Site "Pärnu, Estonia Resort Hotel & Spa"]
[Date "????.??.??"]
[Round "5.8"]
[White "Olde, Grete"]
[Black "Zafra, Kim"]
[Result "1-0"]
[TimeControl "15 minutit partiile + 3 sek käigule"]
[WhiteTitle "WCM"]
[WhiteElo "2054"]
[BlackElo "1428"]

1. e4 {[%clk 00:15:04]} {[%emt 00:06:11]} d6 {[%clk 00:15:06]} {[%emt
00:00:01]} 2. d4 {[%clk 00:15:05]} {[%emt 00:00:02]} Nf6 {[%clk 00:15:08]} 3.
Nc3 {[%emt 00:00:02]} g6 4. Nf3 {[%clk 00:15:06]} {[%emt 00:00:02]} Bg7 {[%clk
00:15:13]} 5. Be2 {[%clk 00:15:06]} {[%emt 00:00:03]} Bg4 {[%clk 00:15:11]}
{[%emt 00:00:04]} 6. O-O {[%clk 00:14:59]} {[%emt 00:00:11]} O-O {[%clk
00:15:12]} {[%emt 00:00:02]} 7. Re1 {[%clk 00:14:17]} {[%emt 00:00:45]} Nc6
{[%clk 00:13:51]} {[%emt 00:01:25]} 8. Be3 {[%clk 00:13:39]} {[%emt 00:00:40]}
Re8 {[%clk 00:13:23]} {[%emt 00:00:32]} 9. h3 {[%clk 00:13:02]} {[%emt
00:00:40]} Bxf3 {[%clk 00:13:24]} {[%emt 00:00:02]} 10. Bxf3 {[%clk 00:13:03]}
{[%emt 00:00:02]} e5 {[%clk 00:13:27]} 11. d5 {[%clk 00:12:58]} {[%emt
00:00:08]} Nd4 {[%clk 00:13:28]} {[%emt 00:00:01]} 12. Bxd4 exd4 {[%clk
00:13:30]} 13. Nb5 {[%clk 00:10:11]} {[%emt 00:00:22]} c5 {[%clk 00:11:56]}
{[%emt 00:01:37]} 14. dxc6 {[%clk 00:09:59]} {[%emt 00:00:15]} bxc6 {[%clk
00:10:31]} {[%emt 00:01:27]} 15. Nxd4 {[%clk 00:09:40]} {[%emt 00:00:23]} Qb6
{[%clk 00:10:27]} {[%emt 00:00:08]} 16. Nb3 {[%clk 00:09:24]} {[%emt 00:00:19]}
Rad8 {[%clk 00:10:04]} {[%emt 00:00:25]} 17. c3 {[%clk 00:09:11]} {[%emt
00:00:16]} a5 {[%clk 00:08:40]} {[%emt 00:01:28]} 18. Qc2 {[%clk 00:08:56]}
{[%emt 00:00:17]} Nd7 {[%clk 00:08:07]} {[%emt 00:00:36]} 19. Rad1 {[%clk
00:07:44]} {[%emt 00:01:16]} Ne5 {[%clk 00:08:08]} {[%emt 00:00:02]} 20. Be2
{[%clk 00:07:36]} {[%emt 00:00:11]} c5 {[%clk 00:07:00]} {[%emt 00:01:10]} 21.
Rd5 {[%clk 00:06:49]} {[%emt 00:00:49]} Rb8 {[%clk 00:06:43]} {[%emt 00:00:22]}
22. Qd2 {[%clk 00:05:43]} {[%emt 00:01:10]} a4 {[%clk 00:06:03]} {[%emt
00:00:44]} 23. Rxd6 {[%clk 00:05:27]} {[%emt 00:00:19]} Qc7 {[%clk 00:05:59]}
{[%emt 00:00:06]} 24. Nc1 {[%clk 00:05:08]} {[%emt 00:00:22]} Rxb2 {[%clk
00:05:59]} {[%emt 00:00:04]} 25. Qxb2 {[%clk 00:04:53]} {[%emt 00:00:18]} Qxd6
{[%clk 00:06:01]} {[%emt 00:00:01]} 26. Rd1 {[%clk 00:04:24]} {[%emt 00:00:31]}
Qc6 {[%clk 00:05:32]} {[%emt 00:00:33]} 27. Bb5 {[%clk 00:04:16]} {[%emt
00:00:11]} Qb6 {[%clk 00:05:05]} {[%emt 00:00:29]} 28. Qe2 {[%clk 00:04:15]}
{[%emt 00:00:05]} Ra8 {[%clk 00:04:27]} {[%emt 00:00:40]} 29. c4 {[%clk
00:04:17]} {[%emt 00:00:02]} Qb7 {[%clk 00:01:32]} {[%emt 00:02:57]} 30. Rd5
{[%clk 00:03:58]} {[%emt 00:00:23]} Nc6 {[%clk 00:01:09]} {[%emt 00:00:27]} 31.
Rxc5 {[%clk 00:03:44]} {[%emt 00:00:16]} Nd4 {[%clk 00:01:10]} {[%emt
00:00:02]} 32. Qg4 {[%clk 00:03:13]} {[%emt 00:00:33]} f5 {[%clk 00:00:51]}
{[%emt 00:00:22]} 33. exf5 {[%clk 00:02:51]} {[%emt 00:00:26]} gxf5 {[%clk
00:00:50]} {[%emt 00:00:04]} 34. Qf4 {[%clk 00:02:40]} {[%emt 00:00:13]} Ne6
{[%clk 00:00:44]} {[%emt 00:00:09]} 35. Qxf5 {[%clk 00:02:23]} {[%emt
00:00:22]} Nxc5 {[%clk 00:00:46]} 36. Qxc5 {[%clk 00:02:24]} {[%emt 00:00:01]}
Rc8 {[%clk 00:00:32]} {[%emt 00:00:16]} 37. Qg5 {[%clk 00:02:09]} {[%emt
00:00:18]} h6 {[%clk 00:00:27]} {[%emt 00:00:09]} 38. Qg4 {[%clk 00:02:09]}
{[%emt 00:00:04]} Rd8 {[%clk 00:00:19]} {[%emt 00:00:10]} 39. Ne2 {[%clk
00:02:01]} {[%emt 00:00:12]} Rd1+ {[%clk 00:00:14]} {[%emt 00:00:07]} 40. Kh2
{[%clk 00:02:04]} Qc7+ {[%clk 00:00:11]} {[%emt 00:00:05]} 41. Ng3 {[%clk
00:01:51]} {[%emt 00:00:16]} Rd2 {[%clk 00:00:07]} {[%emt 00:00:07]} 42. Qe6+
{[%clk 00:01:46]} {[%emt 00:00:08]} Qf7 {[%clk 00:00:06]} {[%emt 00:00:03]} 43.
Qxf7+ {[%clk 00:01:02]} {[%emt 00:00:49]} Kxf7 {[%clk 00:00:09]} 44. c5 {[%clk
00:00:40]} {[%emt 00:00:25]} Rxf2 {[%clk 00:00:09]} {[%emt 00:00:02]} 45. Ne4
{[%clk 00:00:33]} {[%emt 00:00:09]} Be5+ {[%clk 00:00:08]} {[%emt 00:00:04]} 46.
Kg1 {[%clk 00:00:35]} {[%emt 00:00:02]} Bd4 {[%clk 00:00:06]} {[%emt 00:00:03]}
47. Nxf2 {[%clk 00:00:37]} {[%emt 00:00:03]} Bxc5 {[%clk 00:00:07]} {[%emt
00:00:02]} 48. Bxa4 {[%clk 00:00:38]} {[%emt 00:00:02]} Ke7 {[%clk 00:00:08]}
{[%emt 00:00:02]} 49. Kf1 {[%clk 00:00:40]} {[%emt 00:00:02]} Kd8 {[%clk
00:15:03]} {[%emt 00:00:04]} 1-0